[Event "ETCC Open 2013"]
[Site "Warsaw"]
[Date "2013.11.14"]
[Round "6"]
[White "Andreikin, Dmitry"]
[Black "Parligras, Mircea-Emilian"]
[Result "*"]
[ECO "B12"]
[WhiteElo "2710"]
[BlackElo "2576"]
[PlyCount "234"]
[EventDate "2013.??.??"]
[EventCountry "POL"]
[WhiteTeam "Russia"]
[BlackTeam "Romania"]
[WhiteTeamCountry "RUS"]
[BlackTeamCountry "ROU"]
[TimeControl "40/5400+30:1800+30"]

1. e4 {[%emt 0:00:00]} c6 {[%emt 0:00:00]} 2. d4 {[%emt 0:00:00]} d5 {[%emt 0:
00:00]} 3. e5 {[%emt 0:00:00]} Bf5 {[%emt 0:00:00]} 4. Nf3 {[%emt 0:00:32]} e6
{[%emt 0:00:03]} 5. Be2 {[%emt 0:00:09]} Ne7 {[%emt 0:00:18]} 6. O-O {[%emt 0:
01:07]} c5 {[%emt 0:00:08]} 7. c4 {[%emt 0:01:38]} Nbc6 {[%emt 0:00:39]} 8.
dxc5 {[%emt 0:01:43]} d4 {[%emt 0:00:12]} 9. Qb3 {[%emt 0:00:13]} Qc7 {[%emt 0:
00:24]} 10. Na3 {[%emt 0:02:29]} a6 {[%emt 0:00:11]} 11. Qa4 {[%emt 0:01:21]}
Rd8 {[%emt 0:00:21]} 12. b4 {[%emt 0:01:11]} Ng6 {[%emt 0:02:10]} 13. Bd1 {
[%emt 0:04:29]} Rd7 {[%emt 0:12:47]} 14. Nc2 {[%emt 0:00:15]} Bxc2 {[%emt 0:26:
45]} 15. Bxc2 {[%emt 0:00:19]} d3 {[%emt 0:07:14]} 16. Bd1 {[%emt 0:00:20]} Be7
{[%emt 0:00:04]} 17. Bb2 {[%emt 0:00:15]} O-O {[%emt 0:00:08]} 18. Rb1 {[%emt
0:00:07]} Rfd8 {[%emt 0:00:56]} 19. Re1 {[%emt 0:00:06]} Nh4 {[%emt 0:02:50]}
20. Nxh4 {[%emt 0:39:29]} Bxh4 {[%emt 0:00:05]} 21. Re4 {[%emt 0:00:07]} Be7 {
[%emt 0:06:11]} 22. Bc3 {[%emt 0:00:08]} Nd4 {[%emt 0:02:17]} 23. Rb2 {[%emt 0:
00:09]} a5 {[%emt 0:15:47]} 24. a3 {[%emt 0:01:54]} axb4 {[%emt 0:00:48]} 25.
axb4 {[%emt 0:00:09]} b6 {[%emt 0:02:11]} 26. Bxd4 {[%emt 0:20:44]} Rxd4 {
[%emt 0:00:08]} 27. Rxd4 {[%emt 0:00:10]} Rxd4 {[%emt 0:00:04]} 28. cxb6 {
[%emt 0:00:18]} Qxb6 {[%emt 0:05:42]} 29. c5 {[%emt 0:04:37]} Qb8 {[%emt 0:01:
33]} 30. g3 {[%emt 0:06:11]} Qxe5 {[%emt 0:02:44]} 31. Qe8+ {[%emt 0:09:20]}
Bf8 {[%emt 0:00:04]} 32. Ra2 {[%emt 0:03:04]} Rxb4 {[%emt 0:01:17]} 33. Ra8 {
[%emt 0:02:04]} Qxc5 {[%emt 0:00:57]} 34. Rc8 {[%emt 0:00:07]} Qd6 {[%emt 0:00:
46]} 35. Rd8 {[%emt 0:00:09]} Qc5 {[%emt 0:00:06]} 36. Rc8 {[%emt 0:00:07]}
Qxc8 {[%emt 0:02:49]} 37. Qxc8 {[%emt 0:00:06]} Rb1 {[%emt 0:00:04]} 38. Kg2 {
[%emt 0:01:09]} Rxd1 {[%emt 0:00:06]} 39. Qc3 {[%emt 0:02:26]} g6 {[%emt 0:01:
05]} 40. Kf3 {[%emt 0:00:00]} h5 {[%emt 0:00:00]} 41. Kg2 {[%emt 0:13:24]} Bg7
{[%emt 0:14:32]} 42. Qb3 {[%emt 0:04:12]} Rd2 {[%emt 0:00:24]} 43. Qb8+ {[%emt
0:00:04]} Bf8 {[%emt 0:01:52]} 44. Qb5 {[%emt 0:01:45]} Ra2 {[%emt 0:09:30]}
45. Qxd3 {[%emt 0:06:04]} Bc5 {[%emt 0:00:06]} 46. Qc3 {[%emt 0:01:16]} Rxf2+ {
[%emt 0:03:07]} 47. Kh1 {[%emt 0:00:04]} Be7 {[%emt 0:02:07]} 48. Qd4 {[%emt 0:
00:15]} Rf5 {[%emt 0:00:17]} 49. Kg2 {[%emt 0:00:10]} Bf6 {[%emt 0:00:49]} 50.
Qc4 {[%emt 0:00:08]} Rd5 {[%emt 0:00:55]} 51. Qb4 {[%emt 0:00:18]} Kg7 {[%emt
0:01:09]} 52. Qe1 {[%emt 0:00:57]} Rd4 {[%emt 0:02:11]} 53. Qe3 {[%emt 0:00:18]
} Rb4 {[%emt 0:01:20]} 54. h3 {[%emt 0:00:55]} Rb2+ {[%emt 0:01:02]} 55. Kh1 {
[%emt 0:00:07]} Rc2 {[%emt 0:00:16]} 56. Qe4 {[%emt 0:00:15]} Rd2 {[%emt 0:00:
50]} 57. Qe3 {[%emt 0:00:21]} Rd1+ {[%emt 0:00:30]} 58. Kg2 {[%emt 0:00:05]}
Bd4 {[%emt 0:00:50]} 59. Qe4 {[%emt 0:00:29]} Rd2+ {[%emt 0:00:41]} 60. Kh1 {
[%emt 0:00:12]} e5 {[%emt 0:00:45]} 61. h4 {[%emt 0:00:31]} Rf2 {[%emt 0:00:58]
} 62. Qd3 {[%emt 0:00:20]} Ra2 {[%emt 0:02:12]} 63. Qe4 {[%emt 0:00:08]} Ra3 {
[%emt 0:01:10]} 64. Kg2 {[%emt 0:00:05]} Re3 {[%emt 0:00:08]} 65. Qd5 {[%emt 0:
00:06]} Re2+ {[%emt 0:00:26]} 66. Kh1 {[%emt 0:00:10]} Rb2 {[%emt 0:01:23]} 67.
Qe4 {[%emt 0:00:11]} Rf2 {[%emt 0:01:26]} 68. Qd3 {[%emt 0:00:18]} Rf6 {[%emt
0:01:17]} 69. Qe4 {[%emt 0:00:13]} Kh7 {[%emt 0:00:52]} 70. Kg2 {[%emt 0:00:13]
} Ra6 {[%emt 0:00:51]} 71. Qb7 {[%emt 0:00:24]} Ra2+ {[%emt 0:00:11]} 72. Kh1 {
[%emt 0:00:04]} Ra7 {[%emt 0:00:13]} 73. Qd5 {[%emt 0:00:13]} Re7 {[%emt 0:00:
41]} 74. Kg2 {[%emt 0:01:17]} Re6 {[%emt 0:01:01]} 75. Qe4 {[%emt 0:00:51]} Re7
{[%emt 0:00:07]} 76. Qd5 {[%emt 0:00:17]} Be3 {[%emt 0:00:46]} 77. Qd6 {[%emt
0:01:51]} Re6 {[%emt 0:00:07]} 78. Qf8 {[%emt 0:00:13]} Rf6 {[%emt 0:00:06]}
79. Qe7 {[%emt 0:00:09]} Rf5 {[%emt 0:00:34]} 80. Qb7 {[%emt 0:00:15]} Bh6 {
[%emt 0:01:05]} 81. Qe4 {[%emt 0:00:12]} Bg7 {[%emt 0:00:12]} 82. Qb7 {[%emt 0:
00:42]} Bf8 {[%emt 0:00:34]} 83. Qc6 {[%emt 0:00:27]} Kg7 {[%emt 0:00:08]} 84.
Qd5 {[%emt 0:00:10]} Be7 {[%emt 0:00:18]} 85. Kg1 {[%emt 0:01:44]} Bb4 {[%emt
0:00:37]} 86. Kg2 {[%emt 0:00:19]} Bc3 {[%emt 0:00:34]} 87. Qd3 {[%emt 0:00:23]
} Bd4 {[%emt 0:01:07]} 88. Qe4 {[%emt 0:00:08]} Rf6 {[%emt 0:00:31]} 89. Kh1 {
[%emt 0:00:19]} Re6 {[%emt 0:00:28]} 90. Kg2 {[%emt 0:00:17]} Bc5 {[%emt 0:00:
26]} 91. Qd5 {[%emt 0:00:22]} Be7 {[%emt 0:00:09]} 92. Qe4 {[%emt 0:00:07]} f5
{[%emt 0:00:33]} 93. Qd5 {[%emt 0:00:34]} Kf7 {[%emt 0:00:06]} 94. Kf3 {[%emt
0:00:28]} e4+ {[%emt 0:00:30]} 95. Ke3 {[%emt 0:00:13]} Bd6 {[%emt 0:00:57]}
96. Qb7+ {[%emt 0:00:30]} Kf6 {[%emt 0:00:55]} 97. Qc8 {[%emt 0:00:10]} Kf7 {
[%emt 0:00:29]} 98. Qd7+ {[%emt 0:00:17]} Be7 {[%emt 0:00:04]} 99. Qd5 {[%emt
0:00:08]} Bf8 {[%emt 0:00:23]} 100. Ke2 {[%emt 0:01:59]} e3 {[%emt 0:00:56]}
101. Qd7+ {[%emt 0:00:40]} Re7 {[%emt 0:00:13]} 102. Qd5+ {[%emt 0:00:06]} Kg7
{[%emt 0:00:12]} 103. Qd4+ {[%emt 0:00:09]} Kf7 {[%emt 0:00:38]} 104. Qd5+ {
[%emt 0:00:09]} Re6 {[%emt 0:00:32]} 105. Qd7+ {[%emt 0:00:09]} Be7 {[%emt 0:
00:07]} 106. Qd5 {[%emt 0:00:05]} Bf6 {[%emt 0:00:59]} 107. Qd7+ {[%emt 0:03:
33]} Re7 {[%emt 0:00:04]} 108. Qd5+ {[%emt 0:00:07]} Kg7 {[%emt 0:00:09]} 109.
Qd6 {[%emt 0:00:08]} Re4 {[%emt 0:00:50]} 110. Qc7+ {[%emt 0:00:25]} Kh6 {
[%emt 0:00:17]} 111. Qd6 {[%emt 0:00:33]} Bg7 {[%emt 0:00:09]} 112. Qd8 {[%emt
0:01:00]} Kh7 {[%emt 0:00:41]} 113. Qc7 {[%emt 0:00:15]} Kh6 {[%emt 0:01:20]}
114. Qd8 {[%emt 0:00:45]} Rd4 {[%emt 0:01:01]} 115. Qc7 {[%emt 0:01:17]} Rg4 {
[%emt 0:00:46]} 116. Kxe3 {[%emt 0:00:46]} Rb4 {[%emt 0:00:33]} 117. Kf3 {
[%emt 0:00:47]} Rg4 *

[Event "ETCC Open 2013"]
[Site "Warsaw"]
[Date "2013.11.14"]
[Round "6"]
[White "Boruchovsky, Avital"]
[Black "Rombaldoni, Axel"]
[Result "0-1"]
[ECO "C03"]
[WhiteElo "2472"]
[BlackElo "2530"]
[PlyCount "102"]
[EventDate "2013.??.??"]
[EventCountry "POL"]
[WhiteTeam "Israel"]
[BlackTeam "Italy"]
[WhiteTeamCountry "ISR"]
[BlackTeamCountry "ITA"]
[TimeControl "40/5400+30:1800+30"]

1. e4 {[%emt 0:00:00]} e6 {[%emt 0:00:00]} 2. d4 {[%emt 0:00:00]} d5 {[%emt 0:
00:00]} 3. Nd2 {[%emt 0:00:00]} a6 {[%emt 0:00:54]} 4. Ngf3 {[%emt 0:13:27]}
Nf6 {[%emt 0:00:33]} 5. Bd3 {[%emt 0:02:50]} c5 {[%emt 0:00:20]} 6. exd5 {
[%emt 0:00:33]} exd5 {[%emt 0:01:03]} 7. dxc5 {[%emt 0:04:47]} Bxc5 {[%emt 0:
00:03]} 8. Nb3 {[%emt 0:00:10]} Bd6 {[%emt 0:00:08]} 9. Qe2+ {[%emt 0:03:47]}
Be7 {[%emt 0:00:06]} 10. Be3 {[%emt 0:03:47]} O-O {[%emt 0:02:36]} 11. h3 {
[%emt 0:01:07]} Nc6 {[%emt 0:00:40]} 12. c3 {[%emt 0:01:17]} Re8 {[%emt 0:08:
30]} 13. Qc2 {[%emt 0:11:50]} Bd6 {[%emt 0:20:52]} 14. O-O-O {[%emt 0:06:43]}
Bd7 {[%emt 0:10:41]} 15. Bf5 {[%emt 0:12:10]} Rc8 {[%emt 0:03:02]} 16. Bxd7 {
[%emt 0:00:06]} Qxd7 {[%emt 0:00:05]} 17. Nbd4 {[%emt 0:11:02]} Nb4 {[%emt 0:
11:36]} 18. Qb3 {[%emt 0:00:02]} a5 {[%emt 0:00:24]} 19. a4 {[%emt 0:00:01]}
Ne4 {[%emt 0:01:10]} 20. Nb5 {[%emt 0:05:34]} Bf4 {[%emt 0:12:55]} 21. Kb1 {
[%emt 0:02:35]} Bxe3 {[%emt 0:03:13]} 22. cxb4 {[%emt 0:00:03]} Bxf2 {[%emt 0:
07:01]} 23. Rxd5 {[%emt 0:01:39]} Qe6 {[%emt 0:00:08]} 24. Rhd1 {[%emt 0:04:05]
} axb4 {[%emt 0:00:03]} 25. Qxb4 {[%emt 0:00:52]} Qg6 {[%emt 0:02:26]} 26. Ka2
{[%emt 0:04:20]} Qxg2 {[%emt 0:00:09]} 27. Nd2 {[%emt 0:08:05]} Nc5 {[%emt 0:
04:06]} 28. Nc4 {[%emt 0:00:14]} Be1 {[%emt 0:00:23]} 29. Rxe1 {[%emt 0:01:40]}
Qxd5 {[%emt 0:01:48]} 30. Rxe8+ {[%emt 0:00:28]} Rxe8 {[%emt 0:00:01]} 31. Nc7
{[%emt 0:00:01]} Na6 {[%emt 0:02:33]} 32. Nxd5 {[%emt 0:00:02]} Nxb4+ {[%emt 0:
00:03]} 33. Nxb4 {[%emt 0:00:01]} h5 {[%emt 0:01:14]} 34. a5 {[%emt 0:01:46]}
Re6 {[%emt 0:04:38]} 35. Nd3 {[%emt 0:00:43]} g5 {[%emt 0:00:17]} 36. Nc5 {
[%emt 0:00:35]} Rc6 {[%emt 0:00:49]} 37. b4 {[%emt 0:00:01]} g4 {[%emt 0:00:27]
} 38. hxg4 {[%emt 0:00:08]} h4 {[%emt 0:00:22]} 39. Nd2 {[%emt 0:02:20]} h3 {
[%emt 0:00:26]} 40. Nf1 {[%emt 0:00:00]} Rf6 {[%emt 0:00:00]} 41. Ng3 {[%emt 0:
00:37]} Rf2+ {[%emt 0:01:44]} 42. Kb1 {[%emt 0:03:54]} Rf4 {[%emt 0:04:35]} 43.
Kc2 {[%emt 0:04:55]} Rxb4 {[%emt 0:05:05]} 44. Nce4 {[%emt 0:02:38]} h2 {[%emt
0:00:53]} 45. Kd3 {[%emt 0:00:09]} Ra4 {[%emt 0:04:10]} 46. Ke3 {[%emt 0:02:30]
} Rxa5 {[%emt 0:00:13]} 47. Kf3 {[%emt 0:01:08]} Ra2 {[%emt 0:01:50]} 48. Nf2 {
[%emt 0:00:05]} b5 {[%emt 0:00:12]} 49. Kg2 {[%emt 0:00:29]} b4 {[%emt 0:00:09]
} 50. Nge4 {[%emt 0:00:01]} b3 {[%emt 0:00:31]} 51. Kxh2 {[%emt 0:00:13]} Rc2 {
[%emt 0:00:42]} 0-1

[Event "ETCC Open 2013"]
[Site "Warsaw"]
[Date "2013.11.14"]
[Round "6"]
[White "Nevednichy, Vladislav"]
[Black "Morozevich, Alexander"]
[Result "1/2-1/2"]
[ECO "B47"]
[WhiteElo "2590"]
[BlackElo "2727"]
[PlyCount "90"]
[EventDate "2013.??.??"]
[EventCountry "POL"]
[WhiteTeam "Romania"]
[BlackTeam "Russia"]
[WhiteTeamCountry "ROU"]
[BlackTeamCountry "RUS"]
[TimeControl "40/5400+30:1800+30"]

1. e4 {[%emt 0:00:00]} c5 {[%emt 0:00:00]} 2. Nf3 {[%emt 0:00:00]} e6 {[%emt 0:
00:00]} 3. d4 {[%emt 0:00:20]} cxd4 {[%emt 0:00:00]} 4. Nxd4 {[%emt 0:00:03]}
Nc6 {[%emt 0:00:08]} 5. Nc3 {[%emt 0:00:23]} Qc7 {[%emt 0:00:08]} 6. Be2 {
[%emt 0:02:13]} Nf6 {[%emt 0:01:01]} 7. Be3 {[%emt 0:10:34]} Be7 {[%emt 0:07:
31]} 8. f4 {[%emt 0:04:17]} O-O {[%emt 0:02:01]} 9. e5 {[%emt 0:02:52]} Ne8 {
[%emt 0:01:03]} 10. Qd2 {[%emt 0:07:24]} f6 {[%emt 0:08:10]} 11. exf6 {[%emt 0:
07:47]} Nxf6 {[%emt 0:00:52]} 12. a3 {[%emt 0:06:46]} a6 {[%emt 0:19:48]} 13.
O-O {[%emt 0:07:49]} Na5 {[%emt 0:05:22]} 14. Nb3 {[%emt 0:15:21]} Nxb3 {[%emt
0:14:27]} 15. cxb3 {[%emt 0:00:04]} b5 {[%emt 0:00:16]} 16. Rac1 {[%emt 0:01:
54]} Qb8 {[%emt 0:00:18]} 17. b4 {[%emt 0:05:05]} Bb7 {[%emt 0:00:44]} 18. Bd4
{[%emt 0:01:15]} Bc6 {[%emt 0:07:05]} 19. Bf3 {[%emt 0:04:40]} Bxf3 {[%emt 0:
11:56]} 20. Rxf3 {[%emt 0:00:05]} Rf7 {[%emt 0:00:06]} 21. Qe2 {[%emt 0:06:41]}
Ng4 {[%emt 0:03:41]} 22. g3 {[%emt 0:01:31]} Bf6 {[%emt 0:04:31]} 23. Rd3 {
[%emt 0:01:12]} Bxd4+ {[%emt 0:01:12]} 24. Rxd4 {[%emt 0:00:02]} Qa7 {[%emt 0:
00:55]} 25. Rcd1 {[%emt 0:00:55]} e5 {[%emt 0:04:31]} 26. fxe5 {[%emt 0:00:04]}
Nf2 {[%emt 0:00:05]} 27. R1d2 {[%emt 0:01:02]} Nh3+ {[%emt 0:03:10]} 28. Kh1 {
[%emt 0:00:04]} Rf2 {[%emt 0:01:28]} 29. Qe3 {[%emt 0:02:49]} Raf8 {[%emt 0:00:
07]} 30. Rxf2 {[%emt 0:03:18]} Nxf2+ {[%emt 0:00:52]} 31. Kg1 {[%emt 0:02:41]}
Ng4 {[%emt 0:02:08]} 32. Qe4 {[%emt 0:00:13]} h5 {[%emt 0:00:02]} 33. h3 {
[%emt 0:01:27]} Nh6 {[%emt 0:00:59]} 34. Qd5+ Rf7 35. Qc5 {[%emt 0:03:16]} Qa8
{[%emt 0:00:21]} 36. Rf4 {[%emt 0:00:52]} Qe8 {[%emt 0:00:04]} 37. Qd5 {[%emt
0:00:30]} Kh8 {[%emt 0:00:28]} 38. Ne4 {[%emt 0:01:09]} Rxf4 {[%emt 0:01:24]}
39. gxf4 {[%emt 0:00:03]} Qg6+ {[%emt 0:00:05]} 40. Ng5 {[%emt 0:00:00]} Qb1+ {
[%emt 0:00:00]} 41. Kh2 {[%emt 0:02:58]} Qxb2+ {[%emt 0:01:20]} 42. Qg2 {[%emt
0:00:06]} Qd4 {[%emt 0:04:03]} 43. Qa8+ {[%emt 0:00:48]} Ng8 {[%emt 0:02:45]}
44. Qe4 {[%emt 0:14:20]} Qf2+ {[%emt 0:01:40]} 45. Kh1 {[%emt 0:00:03]} Qf1+ {
[%emt 0:00:12]} 1/2-1/2

[Event "ETCC Open 2013"]
[Site "Warsaw"]
[Date "2013.11.14"]
[Round "6"]
[White "Steingrimsson, Hedinn"]
[Black "Hansen, Sune Berg"]
[Result "1-0"]
[ECO "D45"]
[WhiteElo "2543"]
[BlackElo "2563"]
[PlyCount "105"]
[EventDate "2013.??.??"]
[EventCountry "POL"]
[WhiteTeam "Iceland"]
[BlackTeam "Denmark"]
[WhiteTeamCountry "ISL"]
[BlackTeamCountry "DEN"]
[TimeControl "40/5400+30:1800+30"]

1. d4 {[%emt 0:00:00]} d5 {[%emt 0:00:00]} 2. c4 {[%emt 0:00:00]} c6 {[%emt 0:
00:07]} 3. Nc3 {[%emt 0:00:00]} Nf6 {[%emt 0:00:30]} 4. e3 {[%emt 0:00:02]} e6
{[%emt 0:01:06]} 5. Nf3 {[%emt 0:00:07]} Nbd7 {[%emt 0:00:05]} 6. Qc2 {[%emt 0:
00:08]} b6 {[%emt 0:01:46]} 7. cxd5 {[%emt 0:00:46]} exd5 {[%emt 0:00:43]} 8.
Bd3 {[%emt 0:00:19]} Bb7 {[%emt 0:03:36]} 9. O-O {[%emt 0:00:47]} Be7 {[%emt 0:
02:38]} 10. e4 {[%emt 0:00:25]} dxe4 {[%emt 0:04:29]} 11. Nxe4 {[%emt 0:00:02]}
O-O {[%emt 0:04:05]} 12. Ne5 {[%emt 0:02:55]} c5 {[%emt 0:06:33]} 13. Ng5 {
[%emt 0:00:15]} g6 {[%emt 0:02:06]} 14. Bc4 {[%emt 0:00:07]} Nd5 {[%emt 0:09:
31]} 15. Ngxf7 {[%emt 0:02:22]} Rxf7 {[%emt 0:01:53]} 16. Nxf7 {[%emt 0:00:02]}
Kxf7 {[%emt 0:00:06]} 17. Rd1 {[%emt 0:00:24]} Qc7 {[%emt 0:33:49]} 18. dxc5 {
[%emt 0:01:10]} N7f6 {[%emt 0:01:50]} 19. cxb6 {[%emt 0:00:46]} axb6 {[%emt 0:
03:48]} 20. Bxd5+ {[%emt 0:36:57]} Nxd5 {[%emt 0:00:28]} 21. Qxc7 {[%emt 0:00:
03]} Nxc7 {[%emt 0:00:06]} 22. Rd7 {[%emt 0:00:05]} Rd8 {[%emt 0:00:16]} 23.
Rxe7+ {[%emt 0:00:28]} Kxe7 {[%emt 0:00:03]} 24. Bg5+ {[%emt 0:00:05]} Kd7 {
[%emt 0:00:50]} 25. Rd1+ {[%emt 0:02:17]} Nd5 {[%emt 0:00:35]} 26. Bxd8 {[%emt
0:00:06]} Kxd8 {[%emt 0:00:02]} 27. f3 {[%emt 0:00:08]} Ke7 {[%emt 0:01:30]}
28. Kf2 {[%emt 0:01:16]} Bc6 {[%emt 0:01:35]} 29. Rd4 {[%emt 0:01:00]} Kf6 {
[%emt 0:01:10]} 30. a4 {[%emt 0:08:13]} Ke5 {[%emt 0:01:47]} 31. Re4+ {[%emt 0:
03:51]} Kd6 {[%emt 0:01:12]} 32. Rh4 {[%emt 0:08:18]} h5 {[%emt 0:02:57]} 33.
Rc4 {[%emt 0:03:42]} Bd7 {[%emt 0:00:27]} 34. Kg3 {[%emt 0:08:40]} Bf5 {[%emt
0:02:44]} 35. b4 {[%emt 0:03:08]} b5 {[%emt 0:07:06]} 36. axb5 {[%emt 0:00:08]}
Bd7 {[%emt 0:00:06]} 37. f4 {[%emt 0:05:51]} Bxb5 {[%emt 0:00:23]} 38. Rd4 {
[%emt 0:00:02]} Kc6 {[%emt 0:02:10]} 39. Kh4 {[%emt 0:02:09]} Nc7 {[%emt 0:00:
05]} 40. f5 {[%emt 0:00:00]} gxf5 {[%emt 0:00:00]} 41. Kxh5 {[%emt 0:06:19]}
Bf1 {[%emt 0:03:28]} 42. Rd2 {[%emt 0:03:07]} Ne6 {[%emt 0:02:22]} 43. Kh6 {
[%emt 0:09:33]} Kb5 {[%emt 0:02:14]} 44. Rb2 {[%emt 0:01:24]} Bd3 {[%emt 0:03:
57]} 45. h4 {[%emt 0:16:05]} f4 {[%emt 0:03:37]} 46. h5 {[%emt 0:00:12]} Bf5 {
[%emt 0:01:02]} 47. Re2 {[%emt 0:01:18]} Kxb4 {[%emt 0:00:55]} 48. Re5 {[%emt
0:00:02]} Bg4 {[%emt 0:03:19]} 49. Kg6 {[%emt 0:00:56]} Nd4 {[%emt 0:00:44]}
50. Kg5 {[%emt 0:05:41]} f3 {[%emt 0:00:31]} 51. Re4 {[%emt 0:00:25]} Bxh5 {
[%emt 0:00:19]} 52. Rxd4+ {[%emt 0:01:02]} Kc3 {[%emt 0:00:11]} 53. Kxh5 1-0